bitfinex-derivatives/quotes_BTCF0:USTF0_20250828
["timestamp","ask_amount","ask_price","bid_price","bid_amount"]
[1756422170145,0.41549356,112400.0,112380.0,0.01337]
[1756422170548,0.39285356,112400.0,112390.0,0.02961]
[1756422171346,0.39285356,112400.0,112390.0,0.01624]
[1756422171743,0.41549356,112400.0,112390.0,0.01624]
[1756422173853,0.41549356,112400.0,112390.0,0.02961]
[1756422174153,0.41649356,112400.0,112390.0,0.02961]
[1756422174754,0.41749356,112400.0,112390.0,0.02961]
[1756422175852,0.41749356,112400.0,112390.0,0.1185815]
[1756422175853,0.04088,112400.0,112390.0,0.1185815]
[1756422176054,0.01824,112400.0,112390.0,0.74519506]
[1756422176253,0.04088,112400.0,112390.0,0.74519506]
[1756422180356,0.04088,112400.0,112390.0,0.3685815]
[1756422180556,0.04088,112400.0,112390.0,0.27961]
[1756422181555,0.04088,112400.0,112390.0,0.01624]
[1756422181556,0.41749356,112400.0,112390.0,0.01624]
[1756422181754,0.41749356,112400.0,112380.0,0.02238138]
[1756422182056,0.39485356,112400.0,112390.0,0.01533]
[1756422182246,1.21141356,112400.0,112390.0,0.01533]
[1756422182647,1.23462356,112400.0,112390.0,0.01533]
[1756422183053,1.23362356,112400.0,112390.0,0.01533]
[1756422183259,0.03983,112390.0,112380.0,0.0287]
[1756422183457,0.41644356,112390.0,112380.0,0.0287]
[1756422184364,0.41644356,112390.0,112380.0,0.01533]
[1756422184861,0.41644356,112390.0,112380.0,0.0287]
[1756422186361,0.43434916,112390.0,112380.0,0.01533]
[1756422188256,0.43434916,112390.0,112380.0,0.0287]
[1756422189163,0.43434916,112390.0,112380.0,0.01533]
[1756422190860,0.0577356,112390.0,112380.0,0.01533]
[1756422191067,0.43434916,112390.0,112380.0,0.01533]
[1756422194769,0.0577356,112390.0,112380.0,0.01533]
[1756422194963,0.43434916,112390.0,112380.0,0.01533]
[1756422195367,0.41113916,112390.0,112370.0,0.55941299]
[1756422195669,0.03983,112380.0,112370.0,0.19812943]
[1756422195868,0.03983,112380.0,112370.0,0.57474299]
[1756422196472,0.03983,112380.0,112370.0,0.57574299]
[1756422196870,0.03983,112380.0,112370.0,0.5040656]
[1756422197271,0.03983,112380.0,112370.0,0.5050656]
[1756422197670,0.03983,112380.0,112370.0,0.12845204]
[1756422199373,0.03983,112380.0,112370.0,0.5050656]
[1756422201063,0.03983,112380.0,112370.0,0.03946994]
[1756422201267,0.03983,112380.0,112370.0,0.12845724]
[1756422201470,0.03983,112380.0,112370.0,0.5050708]
[1756422202474,0.01662,112380.0,112370.0,0.5050708]
[1756422203971,0.03983,112380.0,112370.0,0.5050708]
[1756422204571,0.01662,112380.0,112370.0,0.5050708]
[1756422204973,0.0411156,112390.0,112380.0,0.1176794]
[1756422204974,0.0345256,112390.0,112380.0,0.1176794]
[1756422205170,0.0345256,112390.0,112380.0,0.49429296]
[1756422205672,0.0577356,112390.0,112380.0,0.49429296]
[1756422207074,0.0577356,112390.0,112380.0,0.1176794]
[1756422207366,0.0577356,112390.0,112380.0,0.40531356]
[1756422207581,0.0577356,112390.0,112380.0,0.49429296]
[1756422211276,0.0179056,112390.0,112380.0,0.49429296]
[1756422211476,0.0331756,112390.0,112380.0,0.49429296]
[1756422213075,0.0578856,112390.0,112380.0,0.49429296]
[1756422214173,0.0578856,112390.0,112380.0,0.1176794]
[1756422214377,0.0578856,112390.0,112380.0,0.49429296]
[1756422217478,0.0331756,112390.0,112380.0,0.49429296]
[1756422218881,0.0578856,112390.0,112380.0,0.1176794]
[1756422219174,0.0578856,112390.0,112380.0,0.49429296]
[1756422220378,0.0331756,112390.0,112380.0,0.49429296]
[1756422221383,0.0179056,112390.0,112380.0,0.49429296]
[1756422221577,0.01834362,112410.0,112390.0,0.1938559]
[1756422221578,0.04305362,112410.0,112390.0,0.1938559]
[1756422221775,0.04305362,112410.0,112400.0,0.46557706]
[1756422221975,0.05832362,112410.0,112400.0,0.49486706]
[1756422222176,0.01834362,112410.0,112400.0,0.49486706]
[1756422223077,0.01934362,112410.0,112400.0,0.49486706]
[1756422223283,0.03461362,112410.0,112400.0,0.49486706]
[1756422223684,0.05932362,112410.0,112400.0,0.1182535]
[1756422223984,0.05932362,112410.0,112400.0,0.49486706]
[1756422224491,0.03461362,112410.0,112400.0,0.49486706]
[1756422224692,0.01934362,112410.0,112400.0,0.49486706]
[1756422224884,0.02034362,112410.0,112400.0,0.49486706]
[1756422225292,0.03561362,112410.0,112400.0,0.49486706]
[1756422225591,0.03461362,112410.0,112400.0,0.49486706]
[1756422225792,0.03561362,112410.0,112400.0,0.49486706]
[1756422231297,0.03561362,112410.0,112400.0,0.1182535]
[1756422231497,0.03561362,112410.0,112400.0,0.49486706]
[1756422232297,0.02034362,112410.0,112400.0,0.49486706]
[1756422233800,0.02034362,112410.0,112400.0,0.1182535]
[1756422234000,0.02034362,112410.0,112400.0,0.49486706]
[1756422237703,0.00697362,112410.0,112400.0,1.43148062]
[1756422238703,0.00697362,112410.0,112400.0,2.26008062]
[1756422239204,0.00597362,112410.0,112400.0,2.26008062]
[1756422239505,0.00497362,112410.0,112400.0,2.26008062]
[1756422239701,0.00497362,112410.0,112400.0,1.44148062]
[1756422240006,0.00497362,112410.0,112400.0,1.56330706]
[1756422240308,0.00497362,112410.0,112400.0,0.74486706]
[1756422240607,0.00497362,112410.0,112400.0,1.56318706]
[1756422241005,0.00497362,112410.0,112400.0,0.74486706]
[1756422241304,0.00497362,112410.0,112400.0,1.56310706]
[1756422242007,0.00497362,112410.0,112400.0,1.88310706]
[1756422242810,0.00497362,112410.0,112400.0,1.56310706]
[1756422243107,0.02094362,112410.0,112400.0,1.56306706]
[1756422243607,0.00497362,112410.0,112400.0,0.74486706]
[1756422243906,0.00497362,112410.0,112400.0,1.56322706]
[1756422244105,0.00497362,112410.0,112400.0,1.33264559]
[1756422244307,0.05767024,112440.0,112430.0,0.0889399]
[1756422244503,0.05767024,112440.0,112430.0,0.46555346]
[1756422245297,0.01597,112440.0,112430.0,0.46555346]
[1756422245606,0.04043,112440.0,112430.0,0.48567428]
[1756422245800,0.04143,112440.0,112430.0,0.48567428]
[1756422245996,0.01797,112440.0,112430.0,0.49440272]
[1756422246903,0.01797,112440.0,112430.0,0.56450511]
[1756422247308,0.01797,112440.0,112430.0,0.49440272]
[1756422249312,0.002,112440.0,112430.0,0.49440272]
[1756422249604,0.002,112440.0,112430.0,0.81440272]
[1756422249809,0.002,112440.0,112430.0,1.63268272]
[1756422250309,0.002,112440.0,112430.0,2.25929628]
[1756422250511,0.002,112440.0,112430.0,1.88268272]
[1756422250910,0.002,112440.0,112430.0,1.95473447]
[1756422252512,0.002,112440.0,112430.0,1.95441447]
[1756422254014,0.002,112440.0,112430.0,1.13645447]
[1756422254213,0.002,112440.0,112430.0,1.95413447]
[1756422254713,0.002,112440.0,112430.0,1.57752091]
[1756422254916,0.002,112440.0,112430.0,1.95401447]
[1756422256410,0.002,112440.0,112430.0,1.13645447]
[1756422256615,0.002,112440.0,112430.0,1.95405447]
[1756422258520,0.002,112440.0,112430.0,1.13645447]
[1756422258718,0.002,112440.0,112430.0,1.95361447]
[1756422262021,0.002,112440.0,112430.0,1.70361447]
[1756422265522,0.002,112440.0,112430.0,1.95361447]
[1756422266321,0.001,112440.0,112430.0,1.95361447]
[1756422266620,0.03943,112450.0,112440.0,0.0889319]
[1756422266820,0.03943,112450.0,112440.0,0.51554546]
[1756422267317,0.03943,112450.0,112440.0,1.33174546]
[1756422267716,0.04043,112450.0,112440.0,1.33174546]
[1756422268216,0.04143,112450.0,112440.0,1.33174546]
[1756422272025,0.04143,112450.0,112440.0,0.51554546]
[1756422272222,0.04143,112450.0,112440.0,1.33118546]
[1756422272622,0.002,112450.0,112440.0,1.33118546]
[1756422272823,0.002,112450.0,112440.0,1.97779902]
[1756422273526,0.002,112450.0,112440.0,1.97763902]
[1756422275425,0.001,112450.0,112440.0,1.97763902]
[1756422275926,0.03926,112470.0,112460.0,0.0889161]
[1756422276128,0.03926,112470.0,112460.0,1.28080966]
[1756422277128,0.04226,112470.0,112460.0,1.28080966]
[1756422277427,0.01909,112470.0,112460.0,1.28080966]
[1756422277829,0.04226,112470.0,112460.0,1.28080966]
[1756422278727,0.04226,112470.0,112460.0,1.30061804]
[1756422279923,0.01909,112470.0,112460.0,1.30061804]
[1756422281528,0.01909,112470.0,112460.0,0.48533804]
[1756422281828,0.01909,112470.0,112460.0,1.30029804]
[1756422282625,0.04226,112470.0,112460.0,1.30029804]
[1756422282826,0.04226,112470.0,112460.0,1.30017804]
[1756422283027,0.04226,112470.0,112460.0,1.30001804]
[1756422283327,0.04226,112470.0,112460.0,0.48533804]
[1756422283626,0.04226,112470.0,112460.0,1.30021804]
[1756422284028,0.04226,112470.0,112460.0,0.48533804]
[1756422284227,0.04226,112470.0,112460.0,1.30033804]
[1756422285028,0.04226,112470.0,112460.0,0.92372448]
[1756422285231,0.04226,112470.0,112460.0,1.30033804]
[1756422286428,0.04226,112470.0,112460.0,1.30001804]
[1756422286631,0.04226,112470.0,112460.0,1.29997804]
[1756422293037,0.01909,112470.0,112460.0,1.29997804]
[1756422293430,0.01909,112470.0,112460.0,0.48533804]
[1756422293626,0.01909,112470.0,112460.0,1.29953804]
[1756422293832,0.04226,112470.0,112460.0,1.29953804]
[1756422295140,0.04226,112470.0,112460.0,0.92292448]
[1756422295340,0.01909,112470.0,112460.0,1.34571465]
[1756422295639,0.01709,112470.0,112460.0,1.34571465]
[1756422296137,0.01609,112470.0,112460.0,1.34571465]
[1756422296332,0.01609,112470.0,112460.0,0.53151465]
[1756422296636,0.04026,112470.0,112460.0,1.34539465]
[1756422296837,0.04126,112470.0,112460.0,1.34539465]
[1756422297339,0.002,112470.0,112460.0,1.34539465]
[1756422297941,0.002,112470.0,112460.0,1.76818482]
[1756422298241,0.002,112470.0,112460.0,1.78818482]
[1756422298440,0.001,112470.0,112460.0,1.78818482]
[1756422300236,0.001,112470.0,112460.0,0.95430482]
[1756422300439,0.02351,112480.0,112470.0,0.0889084]
[1756422300635,0.46206017,112480.0,112470.0,1.32557857]
[1756422301337,0.03927,112480.0,112470.0,1.2785766]
[1756422301744,0.04027,112480.0,112470.0,1.2785766]
[1756422302544,0.04127,112480.0,112470.0,1.2785766]
[1756422304435,0.04127,112480.0,112470.0,1.2785366]
[1756422307745,0.04127,112480.0,112470.0,0.9027484]
[1756422308541,0.04127,112480.0,112470.0,0.0889084]
[1756422309045,0.04127,112480.0,112470.0,0.4646966]
[1756422311448,0.01776,112480.0,112470.0,0.0889084]
[1756422311649,0.01776,112480.0,112470.0,0.4646966]
[1756422312245,0.04127,112480.0,112470.0,0.4646966]
[1756422315550,0.04127,112480.0,112470.0,1.2785366]
[1756422316150,0.04127,112480.0,112470.0,0.4646966]
[1756422316551,0.04127,112480.0,112470.0,0.0889084]
[1756422317648,0.04127,112480.0,112460.0,1.45756414]
[1756422317853,0.01776,112480.0,112460.0,1.54647614]
[1756422318054,0.02351,112470.0,112460.0,1.29834678]
[1756422318549,0.05748026,112470.0,112460.0,0.01980838]
[1756422318755,0.43326846,112470.0,112460.0,0.01980838]
[1756422318955,0.05748026,112470.0,112460.0,0.10872458]
[1756422320256,0.05748026,112470.0,112460.0,0.48451278]
[1756422320755,0.05748026,112470.0,112460.0,0.10872458]
[1756422325358,0.4803398,112470.0,112460.0,0.53158412]
[1756422329162,0.05748026,112470.0,112460.0,0.53158412]
[1756422329362,0.4803398,112470.0,112460.0,0.53158412]
[1756422330258,0.01821026,112470.0,112460.0,1.20444366]
[1756422330662,0.01821026,112470.0,112460.0,0.78158412]
[1756422331362,0.01821026,112470.0,112460.0,0.73447011]
[1756422332165,0.01821026,112470.0,112460.0,0.75447011]
[1756422332669,0.01821026,112470.0,112460.0,0.37872458]
[1756422332862,0.01821026,112470.0,112460.0,0.73447011]
[1756422336772,0.01821026,112470.0,112460.0,0.48447011]
[1756422336975,0.01821026,112470.0,112460.0,0.59447011]
[1756422337175,0.01821026,112470.0,112460.0,0.80447011]
[1756422337876,0.01821026,112470.0,112460.0,0.59447011]
[1756422338077,0.01821026,112470.0,112460.0,0.48447011]
[1756422338378,0.01821026,112470.0,112460.0,0.79447011]
[1756422338676,0.01821026,112470.0,112460.0,0.48447011]
[1756422339478,0.01821026,112470.0,112460.0,1.29831011]
[1756422339669,0.01821026,112470.0,112460.0,0.48447011]
[1756422339871,0.03469026,112470.0,112460.0,1.45752747]
[1756422341179,0.03469026,112470.0,112460.0,0.64368747]
[1756422341377,0.03469026,112470.0,112460.0,1.45752747]
[1756422341574,0.01648,112470.0,112460.0,1.43771909]
[1756422343879,0.01648,112470.0,112460.0,0.62387909]
[1756422344079,0.01648,112470.0,112460.0,1.43767909]
[1756422344277,0.01648,112470.0,112460.0,0.62387909]
[1756422344477,0.04138,112470.0,112460.0,0.62387909]
[1756422344679,0.04138,112470.0,112460.0,1.43767909]
[1756422345283,0.04138,112470.0,112460.0,0.62387909]
[1756422345476,0.04138,112470.0,112460.0,1.06193356]
[1756422345677,0.29138,112470.0,112460.0,0.24813356]
[1756422345882,0.29138,112470.0,112460.0,0.15921736]
[1756422346184,0.29138,112470.0,112450.0,1.45752272]
[1756422346485,0.0249,112460.0,112450.0,1.45752272]
[1756422347882,0.04138,112470.0,112460.0,0.0889162]
[1756422348179,0.04138,112470.0,112460.0,0.46466173]
[1756422350185,0.04238,112470.0,112460.0,0.46466173]
[1756422350884,0.04338,112470.0,112460.0,0.46466173]
[1756422351884,0.04338,112470.0,112460.0,0.62387909]
[1756422354991,0.01848,112470.0,112460.0,0.62387909]
[1756422355590,0.04338,112470.0,112460.0,0.62387909]
[1756422355787,0.04338,112470.0,112460.0,0.46466173]
[1756422357391,0.04338,112470.0,112460.0,0.62387909]
[1756422361994,0.01848,112470.0,112460.0,0.62387909]
[1756422362694,0.002,112470.0,112460.0,0.62387909]
[1756422363492,0.002,112470.0,112460.0,0.67086337]
[1756422364388,0.002,112470.0,112460.0,0.92086337]
[1756422364594,0.002,112470.0,112460.0,0.76164601]
[1756422364795,0.002,112470.0,112460.0,1.18437582]
[1756422365396,0.002,112470.0,112460.0,1.34359318]
[1756422367396,0.002,112470.0,112460.0,0.87379737]
[1756422367600,0.002,112470.0,112460.0,1.68747737]
[1756422367999,0.001,112470.0,112460.0,1.68747737]
[1756422368400,0.001,112470.0,112460.0,1.68847737]
[1756422369299,0.001,112470.0,112460.0,0.87479737]
[1756422369500,0.03321433,112490.0,112480.0,0.0889007]
[1756422369700,0.05791433,112490.0,112480.0,1.27824451]
[1756422370501,0.03321433,112490.0,112480.0,1.27824451]
[1756422370698,0.03321433,112490.0,112480.0,0.46456451]
[1756422370898,0.03421433,112490.0,112480.0,1.27820451]
[1756422371501,0.05891433,112490.0,112480.0,1.27820451]
[1756422373200,0.05991433,112490.0,112480.0,1.27820451]
[1756422374101,0.05991433,112490.0,112480.0,0.46456451]
[1756422374399,0.05991433,112490.0,112480.0,1.27816451]
[1756422374600,0.05991433,112490.0,112480.0,0.46456451]
[1756422374791,0.05991433,112490.0,112480.0,1.27816451]
[1756422376401,0.05991433,112490.0,112480.0,0.9025007]
[1756422376599,0.05991433,112490.0,112480.0,1.27816451]
[1756422378400,0.05991433,112490.0,112480.0,0.46456451]
[1756422378603,0.05991433,112490.0,112480.0,1.27812451]
[1756422379801,0.03521433,112490.0,112480.0,1.27812451]
[1756422381498,0.002,112490.0,112480.0,1.27812451]
[1756422381697,0.002,112490.0,112480.0,1.97378832]
[1756422381902,0.002,112490.0,112480.0,2.22378832]
[1756422382498,0.002,112490.0,112480.0,2.38300568]
[1756422382800,0.002,112490.0,112480.0,2.37296568]
[1756422383404,0.002,112490.0,112480.0,2.08296568]
[1756422384707,0.002,112490.0,112480.0,0.89378187]
[1756422384907,0.002,112490.0,112480.0,1.70726187]
[1756422385509,0.002,112490.0,112480.0,1.68726187]
[1756422385805,0.002,112490.0,112480.0,1.70726187]
[1756422386810,0.002,112490.0,112480.0,1.99726187]
[1756422389409,0.002,112490.0,112480.0,2.04417541]
[1756422390617,0.002,112490.0,112480.0,1.75409541]
[1756422392120,0.002,112490.0,112480.0,2.05409541]
[1756422393314,0.002,112490.0,112480.0,2.47667276]
[1756422393714,0.002,112490.0,112480.0,1.89487805]
[1756422393916,0.002,112490.0,112480.0,2.3174554]
[1756422394521,0.002,112490.0,112480.0,1.59479805]
[1756422397816,0.002,112490.0,112480.0,0.78147805]
[1756422398123,0.002,112490.0,112480.0,1.59479805]
[1756422400127,0.002,112490.0,112480.0,0.78147805]
[1756422400326,0.002,112490.0,112480.0,1.59475805]
[1756422404230,0.002,112490.0,112480.0,1.75397541]
[1756422404943,0.002,112490.0,112480.0,1.73397541]
[1756422405239,0.002,112490.0,112480.0,1.41327276]
[1756422405435,0.002,112490.0,112480.0,2.22651276]
[1756422405738,0.002,112490.0,112480.0,2.47651276]
[1756422406240,0.002,112490.0,112480.0,1.66327276]
[1756422406435,0.002,112490.0,112480.0,2.47647276]
[1756422406740,0.002,112490.0,112480.0,2.3172554]
[1756422407443,0.002,112490.0,112480.0,0.83147805]
[1756422407640,0.04077,112490.0,112480.0,1.64467805]
[1756422408340,0.04077,112490.0,112480.0,1.85279425]
[1756422408540,0.01807,112490.0,112480.0,1.85279425]
[1756422409143,0.002,112490.0,112480.0,1.85279425]
[1756422410344,0.002,112490.0,112480.0,1.03959425]
[1756422410646,0.002,112490.0,112480.0,1.85275425]
[1756422412546,0.002,112490.0,112480.0,2.2753316]
[1756422415649,0.002,112490.0,112480.0,1.4621716]
[1756422415843,0.002,112490.0,112480.0,2.2752516]
[1756422416750,0.01807,112490.0,112480.0,1.03959425]
[1756422417048,0.01807,112490.0,112480.0,1.85267425]
[1756422417851,0.04077,112490.0,112480.0,1.53267425]
[1756422418048,0.04077,112490.0,112480.0,1.85267425]
[1756422418446,0.04077,112490.0,112480.0,1.55263425]
[1756422418948,0.04077,112490.0,112480.0,1.85263425]
[1756422419148,0.04077,112490.0,112480.0,1.64451805]
[1756422419149,0.01807,112490.0,112480.0,1.64451805]
[1756422420740,0.002,112490.0,112480.0,2.0670954]
[1756422421552,4e-05,112500.0,112490.0,0.0888929]
[1756422421753,4e-05,112500.0,112490.0,1.27380844]
[1756422423652,0.00104,112500.0,112490.0,1.27380844]
[1756422425550,0.00104,112500.0,112490.0,0.87406251]
[1756422426353,0.00104,112500.0,112490.0,1.12406251]
[1756422426553,0.00104,112500.0,112490.0,1.93706251]
[1756422427052,0.00104,112500.0,112490.0,2.09657752]
[1756422427649,0.00104,112500.0,112490.0,1.28357752]
[1756422427951,0.00104,112500.0,112490.0,1.93706251]
[1756422428562,0.00104,112500.0,112490.0,2.0964979]
[1756422429460,0.00104,112500.0,112490.0,2.0974979]
[1756422429658,4e-05,112500.0,112490.0,2.30476391]
[1756422429857,4e-05,112500.0,112490.0,2.30576391]
[1756422430058,4e-05,112500.0,112490.0,1.33332852]
[1756422430358,4e-05,112500.0,112490.0,2.14628852]
[1756422430659,4e-05,112500.0,112490.0,2.30571148]
[1756422431057,4e-05,112500.0,112490.0,2.09844547]
[1756422431454,4e-05,112500.0,112490.0,1.93902251]
[1756422432954,4e-05,112500.0,112490.0,1.12606251]
[1756422433160,4e-05,112500.0,112490.0,1.93898251]
[1756422434259,4e-05,112500.0,112490.0,1.12606251]
[1756422434461,4e-05,112500.0,112490.0,1.93898251]
[1756422436267,4e-05,112500.0,112490.0,2.09840547]
[1756422436855,4e-05,112500.0,112490.0,1.28548547]
[1756422437061,0.02424,112500.0,112490.0,1.84836547]
[1756422437456,0.02424,112500.0,112490.0,1.03548547]
[1756422437759,0.27424,112500.0,112490.0,1.03548547]
[1756422437962,0.27424,112500.0,112490.0,1.84836547]
[1756422440866,0.25004,112500.0,112490.0,1.84836547]
[1756422444367,0.25004,112500.0,112490.0,1.68894251]
[1756422445470,0.28987,112500.0,112490.0,1.98834475]
[1756422445669,0.03987,112500.0,112490.0,1.56586557]
[1756422445863,0.03987,112500.0,112490.0,1.98830475]
[1756422448268,0.03987,112500.0,112490.0,1.17550475]
[1756422448469,0.03987,112500.0,112490.0,1.98830475]
[1756422448768,0.03987,112500.0,112490.0,1.56586557]
[1756422449068,0.03987,112500.0,112490.0,1.77313158]
[1756422449468,0.03987,112500.0,112490.0,1.72625882]
[1756422450371,0.03987,112500.0,112490.0,1.51899281]
[1756422450667,0.03987,112500.0,112490.0,1.14342639]
[1756422450966,0.03987,112500.0,112490.0,0.70619281]
[1756422451159,0.03987,112500.0,112490.0,1.51899281]
[1756422452171,0.03987,112500.0,112490.0,0.70619281]
[1756422452359,0.03987,112500.0,112490.0,1.51899281]
[1756422452967,0.03987,112500.0,112490.0,0.70619281]
[1756422453166,0.03987,112500.0,112490.0,1.51899281]
[1756422454472,0.03987,112500.0,112490.0,1.14342639]
[1756422454769,0.03987,112500.0,112490.0,1.51899281]
[1756422455570,0.01567,112500.0,112490.0,1.51899281]
[1756422455969,0.0389,112500.0,112490.0,1.51899281]
[1756422457671,0.01567,112500.0,112490.0,1.51899281]
[1756422458873,0.01567,112500.0,112490.0,1.67856625]
[1756422459273,0.0389,112500.0,112490.0,1.67856625]
[1756422459674,0.0389,112500.0,112490.0,1.51899281]
[1756422459871,0.01567,112500.0,112490.0,1.51899281]
[1756422462775,0.01567,112500.0,112490.0,0.70619281]
[1756422463073,0.01567,112500.0,112490.0,1.51895281]
[1756422467176,0.01567,112500.0,112490.0,1.72621882]
[1756422471284,0.01567,112500.0,112490.0,2.19562008]
[1756422473886,0.01567,112500.0,112490.0,1.3506524]
[1756422474089,0.01567,112500.0,112490.0,2.19562008]
[1756422474587,0.01567,112500.0,112490.0,2.35533125]
[1756422475686,0.01567,112500.0,112490.0,2.14806524]
[1756422476090,4e-05,112500.0,112490.0,2.14806524]
[1756422482998,4e-05,112500.0,112490.0,1.33530524]
[1756422483288,0.02371,112500.0,112490.0,2.14790524]
[1756422483594,0.02371,112500.0,112490.0,1.98819407]
[1756422483896,4e-05,112500.0,112490.0,1.98819407]
[1756422485589,0.25004,112500.0,112490.0,0.75311023]
[1756422485794,0.28898,112500.0,112490.0,1.56571023]
[1756422486194,0.26531,112500.0,112490.0,1.98819407]
[1756422486990,0.28898,112500.0,112490.0,1.98819407]
[1756422489596,0.28898,112500.0,112490.0,1.17559407]
[1756422489798,0.26531,112500.0,112490.0,1.98815407]
[1756422490287,0.26531,112500.0,112490.0,2.19542008]
[1756422491297,0.28898,112500.0,112490.0,2.19542008]
[1756422491499,0.26531,112500.0,112490.0,2.19542008]
[1756422492895,0.26531,112500.0,112490.0,1.38286008]
[1756422493198,0.28898,112500.0,112490.0,2.19538008]
[1756422493599,0.28898,112500.0,112490.0,0.96037624]
[1756422493794,0.28898,112500.0,112490.0,1.77289624]
[1756422495400,0.28898,112500.0,112490.0,2.19538008]
[1756422495600,0.28898,112500.0,112490.0,1.77289624]
[1756422497900,0.28898,112500.0,112490.0,0.96037624]
[1756422498099,0.28898,112500.0,112490.0,1.77289624]
[1756422498796,0.28898,112500.0,112490.0,1.77285624]
[1756422499803,0.28898,112500.0,112490.0,1.56559023]
[1756422501204,0.28898,112500.0,112490.0,1.72534297]
[1756422502507,0.46146384,112500.0,112490.0,0.49037913]
[1756422502697,0.46146384,112500.0,112490.0,1.30285883]
[1756422502896,0.46146384,112500.0,112490.0,1.56558993]
[1756422503400,0.71146384,112500.0,112490.0,0.22197265]
[1756422503600,1.13394768,112500.0,112490.0,0.07197265]
[1756422503800,1.13394768,112500.0,112490.0,0.23172539]
[1756422504403,0.71146384,112500.0,112490.0,0.23172539]
[1756422504604,1.13394768,112500.0,112490.0,0.07197265]
[1756422505101,1.13394768,112500.0,112490.0,0.002]
[1756422506008,1.13394768,112500.0,112480.0,0.51138434]
[1756422506197,0.46142384,112490.0,112480.0,0.51138434]
[1756422508106,0.03894,112490.0,112480.0,0.51138434]
[1756422508305,0.46142384,112490.0,112480.0,0.51138434]
[1756422508702,0.03894,112490.0,112480.0,0.51138434]
[1756422508906,0.46142384,112490.0,112480.0,0.51138434]
[1756422509712,0.03894,112490.0,112480.0,0.51138434]
[1756422510012,0.46142384,112490.0,112480.0,0.51138434]
[1756422515721,0.03894,112490.0,112480.0,0.51138434]
[1756422516718,0.01527,112490.0,112480.0,0.51138434]
[1756422518414,0.0406,112500.0,112490.0,0.0888926]
[1756422518610,0.46308384,112500.0,112490.0,0.51137644]
[1756422519218,0.46308384,112500.0,112490.0,0.5812921]
[1756422519618,0.46308384,112500.0,112490.0,0.15880826]
[1756422519820,0.46308384,112500.0,112490.0,0.5812921]
[1756422520021,0.0406,112500.0,112490.0,0.5812921]
[1756422520218,0.46308384,112500.0,112490.0,0.5812921]
[1756422525721,0.46308384,112500.0,112490.0,0.15880826]
[1756422525921,0.46308384,112500.0,112490.0,0.5812921]
[1756422528419,0.46308384,112500.0,112490.0,0.4923995]
[1756422528624,0.46308384,112500.0,112490.0,0.06991566]
[1756422528625,0.48092513,112500.0,112490.0,0.06991566]
[1756422528925,0.04056,112490.0,112480.0,0.0888947]
[1756422529127,0.46304384,112490.0,112480.0,0.51137854]
[1756422529423,0.46304384,112490.0,112480.0,0.0888947]
[1756422529631,0.46304384,112490.0,112480.0,0.51137854]
[1756422530126,0.46304384,112490.0,112480.0,0.51237854]
[1756422530628,0.46304384,112490.0,112480.0,0.51337854]
[1756422531729,0.04056,112490.0,112480.0,0.51337854]
[1756422532630,0.04056,112490.0,112480.0,0.67313128]
[1756422532832,0.46304384,112490.0,112480.0,0.25064744]
[1756422533029,0.46304384,112490.0,112480.0,0.67313128]
[1756422537429,0.01601,112490.0,112480.0,0.92313128]
[1756422537736,0.01601,112490.0,112480.0,0.94313128]
[1756422540032,0.04056,112490.0,112480.0,0.94313128]
[1756422540338,0.04056,112490.0,112480.0,1.73573128]
[1756422540935,0.04056,112490.0,112480.0,0.50064744]
[1756422541126,0.46304384,112490.0,112480.0,0.50064744]
[1756422541326,0.46304384,112490.0,112480.0,0.25065324]
[1756422541935,0.46304384,112490.0,112480.0,0.67313708]
[1756422542937,0.46304384,112490.0,112480.0,0.25065324]
[1756422543238,0.46304384,112490.0,112480.0,0.67313708]
[1756422543936,0.46304384,112490.0,112480.0,0.51338434]
[1756422544537,0.04056,112490.0,112480.0,0.51338434]
[1756422544734,0.46304384,112490.0,112480.0,0.51338434]
[1756422545341,0.04056,112490.0,112480.0,0.0909005]
[1756422548042,0.04056,112490.0,112480.0,0.46662792]
[1756422557637,0.04056,112490.0,112480.0,0.0909005]
[1756422557839,0.04056,112490.0,112480.0,0.46662792]
[1756422558544,0.01601,112490.0,112480.0,0.78662792]
[1756422558749,0.05679095,112500.0,112490.0,0.0888926]
[1756422558949,0.05679095,112500.0,112490.0,0.46462002]
[1756422559356,0.03337095,112500.0,112490.0,0.46462002]
[1756422559653,0.05679095,112500.0,112490.0,0.46462002]
[1756422560953,0.05679095,112500.0,112490.0,0.53489842]
[1756422561555,0.01776095,112500.0,112490.0,0.53489842]
[1756422561846,0.01776095,112500.0,112490.0,0.80489842]
[1756422564252,0.03337095,112500.0,112490.0,0.80489842]
[1756422565450,0.03337095,112500.0,112490.0,0.85173702]
[1756422565846,0.03333095,112500.0,112490.0,0.85173702]
[1756422569855,0.01772095,112500.0,112490.0,0.85173702]
[1756422570157,0.03333095,112500.0,112490.0,0.85173702]
[1756422572855,0.03333095,112500.0,112490.0,1.01148976]
[1756422573559,0.01772095,112500.0,112490.0,1.01148976]
[1756422573751,0.01772095,112500.0,112490.0,1.01248976]
[1756422574059,0.01772095,112500.0,112490.0,1.18505578]
[1756422574357,0.01772095,112500.0,112490.0,0.76348976]
[1756422574658,0.01772095,112500.0,112490.0,0.90373702]
[1756422575059,0.01772095,112500.0,112490.0,1.32630304]
[1756422575256,0.01772095,112500.0,112490.0,0.90373702]
[1756422575463,0.01772095,112500.0,112490.0,0.58373702]
[1756422575658,0.01772095,112500.0,112490.0,0.181171]
[1756422575859,0.01772095,112500.0,112490.0,0.60373702]
[1756422576056,0.01772095,112500.0,112490.0,1.00630304]
[1756422576254,0.01772095,112500.0,112490.0,1.02630304]
[1756422577563,0.01772095,112500.0,112490.0,0.60373702]
[1756422580061,0.01772095,112500.0,112490.0,1.02630304]
[1756422582466,0.01772095,112500.0,112490.0,1.81874304]
[1756422582664,0.01772095,112500.0,112490.0,1.71617702]
[1756422582963,0.01772095,112500.0,112490.0,1.41617702]
[1756422583158,0.01772095,112500.0,112490.0,0.60373702]
[1756422583159,0.03307095,112500.0,112490.0,0.60373702]
[1756422583367,0.03307095,112500.0,112490.0,1.41617702]
[1756422583560,0.05783095,112500.0,112490.0,1.41617702]
[1756422585168,0.03307095,112500.0,112490.0,1.41617702]
[1756422585867,0.03307095,112500.0,112490.0,1.57592976]
[1756422586470,0.03307095,112500.0,112490.0,0.76348976]
[1756422586667,0.03307095,112500.0,112490.0,1.57588976]
[1756422587771,0.03307095,112500.0,112490.0,0.34092374]
[1756422587971,0.03307095,112500.0,112490.0,1.57588976]